bitfinex/quotes_ETHUSD_20241018
["timestamp","ask_amount","ask_price","bid_price","bid_amount"]
[1729233898967,3.80271,2629.7,2629.6,0.05209365]
[1729233899475,7.605,2629.9,2629.6,0.05209365]
[1729233899678,7.605,2629.9,2629.5,1.66665465]
[1729233900174,3.80244,2629.9,2629.6,1.7187483]
[1729233900377,3.80262,2629.8,2629.6,0.05209365]
[1729233900981,7.60499,2629.9,2629.7,0.05203722]
[1729233901213,7.60496,2629.9,2629.7,0.05203722]
[1729233901512,7.60496,2629.9,2629.5,1.66665465]
[1729233901714,3.80244,2629.9,2629.8,0.0519808]
[1729233901916,3.80244,2629.9,2629.5,1.66665465]
[1729233902125,4.59739,2630.0,2629.5,5.46964465]
[1729233902281,8.39975,2630.0,2629.6,1.7187483]
[1729233902482,3.80249,2629.9,2629.6,0.05209365]
[1729233902893,3.80249,2629.9,2629.6,1.7187483]
[1729233903117,3.80214,2630.1,2629.8,2.45805465]
[1729233903834,3.80214,2630.1,2629.9,0.0518052]
[1729233904233,3.7876,2630.4,2630.0,1.66665465]
[1729233904389,4.560856,2630.3,2629.9,1.71845985]
[1729233904593,3.80193,2630.3,2630.1,0.05169238]
[1729233904789,3.80193,2630.3,2630.0,0.05172572]
[1729233905087,3.80193,2630.3,2630.2,0.05161291]
[1729233905282,3.80193,2630.3,2630.1,0.05166931]
[1729233905512,7.60391,2630.3,2630.1,0.05166931]
[1729233905713,3.80193,2630.3,2629.9,1.66665465]
[1729233906300,7.60386,2630.3,2630.0,0.05172572]
[1729233906826,7.60387,2630.3,2630.0,0.05172572]
[1729233907123,7.60386,2630.3,2630.0,0.05172572]
[1729233907329,3.80193,2630.3,2630.0,0.05172572]
[1729233907625,3.802,2630.2,2630.0,0.05172572]
[1729233909900,3.80184,2630.3,2630.0,0.05172572]
[1729233910711,3.80172,2630.4,2630.2,1.66665465]
[1729233910915,3.80172,2630.4,2630.1,1.66665465]
[1729233910916,3.80184,2630.3,2630.1,1.66665465]
[1729233911327,3.80184,2630.3,2630.2,0.05148988]
[1729233911999,3.80184,2630.3,2630.2,1.71814453]
[1729233914742,4.562196,2630.3,2630.2,0.05148988]
[1729233914901,3.80279,2629.7,2629.2,0.7801]
[1729233915101,3.80279,2629.7,2629.4,1.66665465]
[1729233915336,3.80279,2629.7,2629.5,1.66665465]
[1729233915541,3.80279,2629.7,2629.5,1.70817802]
[1729233916566,3.80279,2629.7,2629.6,1.66665465]
[1729233916768,3.80279,2629.7,2629.6,0.04147461]
[1729233920238,4.641907,2629.7,2629.6,0.04147461]
[1729233920643,3.80304,2629.5,2629.3,1.66665465]
[1729233921081,3.80314,2629.4,2629.3,1.66665465]
[1729233921253,3.80304,2629.5,2629.3,1.66665465]
[1729233921772,0.839117,2629.7,2629.4,1.66665465]
[1729233921773,3.80279,2629.7,2629.4,1.66665465]
[1729233921985,3.80253,2629.9,2629.6,1.66665465]
[1729233922341,7.60509,2629.9,2629.6,1.66665465]
[1729233922540,7.60509,2629.9,2629.3,3.8032]
[1729233922541,7.60509,2629.9,2629.5,1.66665465]
[1729233922741,3.80257,2629.8,2629.5,1.66665465]
[1729233924180,3.80272,2629.7,2629.5,1.66665465]
[1729233924486,7.60509,2629.9,2629.5,1.66665465]
[1729233924648,3.80259,2629.8,2629.5,1.66665465]
[1729233925770,3.80253,2629.9,2629.5,1.66665465]
[1729233925970,3.80274,2629.7,2629.5,1.66665465]
[1729233926597,3.80261,2629.8,2629.5,1.66665465]
[1729233928171,7.60508,2629.9,2629.6,2.46375465]
[1729233928370,3.80253,2629.9,2629.6,2.46375465]
[1729233929280,0.8168,2630.0,2629.8,1.66665465]
[1729233929281,4.61908,2630.0,2629.8,1.66665465]
[1729233929489,3.80222,2630.1,2629.8,1.66665465]
[1729233929698,3.80221,2630.1,2629.8,1.66665465]
[1729233929991,3.80221,2630.1,2629.7,1.66665465]
[1729233931060,3.80221,2630.1,2629.8,1.66665465]
[1729233931294,7.60445,2630.1,2629.8,1.66665465]
[1729233931479,3.80221,2630.1,2629.7,1.66665465]
[1729233932598,3.80221,2630.1,2629.8,1.66665465]
[1729233933161,7.60445,2630.1,2629.8,1.66665465]
[1729233933506,7.60445,2630.1,2629.7,1.66665465]
[1729233933660,3.80221,2630.1,2629.7,1.66665465]
[1729233934801,3.80221,2630.1,2629.8,1.66665465]
[1729233935012,3.80221,2630.1,2629.7,1.66665465]
[1729233935585,3.80221,2630.1,2629.8,1.66665465]
[1729233935814,3.80221,2630.1,2629.9,0.0416392]
[1729233936668,0.79,2630.2,2630.0,1.66665465]
[1729233936870,4.57059,2630.4,2630.1,1.66665465]
[1729233937111,3.80184,2630.3,2630.1,1.70810809]
[1729233937273,3.80184,2630.3,2630.1,0.04145344]
[1729233937470,3.80199,2630.2,2630.1,0.04145344]
[1729233937911,3.80199,2630.2,2629.7,3.80259]
[1729233937912,3.80199,2630.2,2630.0,1.66665465]
[1729233938110,3.80199,2630.2,2630.1,0.04140739]
[1729233938911,7.05689565,2630.2,2630.1,0.04140739]
[1729233939114,3.80254,2629.9,2629.6,1.66665465]
[1729233939473,3.80257,2629.8,2629.7,0.0415755]
[1729233940075,3.80279,2629.7,2629.5,1.66665465]
[1729233941711,0.783,2629.8,2629.6,1.66665465]
[1729233941888,4.5856,2629.8,2629.6,1.66665465]
[1729233942393,3.8026,2629.8,2629.6,1.66665465]
[1729233950831,3.8026,2629.8,2629.7,0.04166761]
[1729233954512,4.62239,2630.0,2629.7,1.70832226]
[1729233954732,3.80216,2630.1,2629.9,1.66665465]
[1729233955039,3.80216,2630.1,2629.6,4.56958]
[1729233955040,3.80213,2630.1,2630.0,0.04155208]
[1729233955536,3.80213,2630.1,2629.8,1.66665465]
[1729233955692,3.80213,2630.1,2630.0,0.04155208]
[1729233956251,3.80228,2630.0,2629.7,1.66665465]
[1729233956448,5.46878465,2630.1,2630.0,0.04155208]
[1729233956596,3.80265,2629.8,2629.5,1.66665465]
[1729233956798,3.80265,2629.8,2629.6,0.04037185]
[1729233956997,7.60536,2629.8,2629.6,0.04037185]
[1729233957223,7.60536,2629.8,2629.5,1.66665465]
[1729233957412,3.80278,2629.7,2629.5,1.66665465]
[1729233957824,3.80265,2629.8,2629.5,1.66665465]
[1729233960013,3.80265,2629.8,2629.3,2.45275465]
[1729233960220,0.7522,2629.7,2629.3,2.45275465]
[1729233960418,4.555,2629.7,2629.4,1.66665465]
[1729233961747,4.555,2629.7,2629.5,1.66665465]
[1729233961953,4.555,2629.7,2629.4,1.66665465]
[1729233962436,4.555,2629.7,2629.6,1.66665465]
[1729233962640,4.555,2629.7,2629.5,1.66665465]
[1729233962858,4.55499,2629.7,2629.3,1.66665465]
[1729233963016,3.80298,2629.6,2629.1,4.58548]
[1729233963344,3.80298,2629.6,2629.3,1.66665465]
[1729233963850,0.7522,2629.7,2629.3,1.66665465]
[1729233964051,4.55502,2629.7,2629.3,1.66665465]
[1729233964648,0.7522,2629.7,2629.3,1.66665465]
[1729233964857,3.80288,2629.6,2629.3,1.66665465]
[1729233965151,4.55495,2629.7,2629.3,1.66665465]
[1729233965917,4.55495,2629.7,2629.4,0.03924437]
[1729233966455,3.80288,2629.6,2629.4,0.03924437]
[1729233968050,0.7522,2629.7,2629.4,1.70589902]
[1729233968249,3.80286,2629.6,2629.4,1.70589902]
[1729233968661,3.80286,2629.6,2629.4,0.03924437]
[1729233968814,0.455506,2629.5,2629.4,0.03924437]
[1729233969016,3.803,2629.5,2629.3,1.66665465]
[1729233969220,3.803,2629.5,2629.4,0.03932104]
[1729233970127,3.80286,2629.6,2629.4,1.70597569]
[1729233970544,0.7522,2629.7,2629.5,1.66665465]
[1729233970752,3.80224,2630.1,2629.7,0.7787]
[1729233971054,3.80231,2630.0,2629.8,1.7058573]
[1729233971463,3.80231,2630.0,2629.8,0.03920265]
[1729233971620,7.60468,2630.0,2629.8,0.03920265]
[1729233971825,3.80231,2630.0,2629.6,1.66665465]
[1729233972059,3.80257,2629.8,2629.2,3.80335]
[1729233972365,3.80257,2629.8,2629.5,1.66665465]
[1729233972366,4.58153,2629.7,2629.5,1.66665465]
[1729233973594,0.7788,2629.7,2629.5,1.66665465]
[1729233974957,4.58157,2629.7,2629.5,1.66665465]
[1729233975689,8.38441,2629.7,2629.5,1.66665465]
[1729233975861,5.61951073,2629.7,2629.4,1.66665465]
[1729233976064,3.80285,2629.6,2629.4,1.66665465]
[1729233977094,3.80286,2629.6,2629.5,1.66665465]
[1729233977247,4.58157,2629.7,2629.5,1.66665465]
[1729233977647,4.58157,2629.7,2629.2,0.7684]
[1729233977848,3.80307,2629.5,2629.2,1.66665465]
[1729233978153,3.80307,2629.5,2629.3,1.66665465]
[1729233978999,7.60616,2629.5,2629.3,1.66665465]
[1729233979179,3.80307,2629.5,2629.3,1.66665465]
[1729233979860,7.60621,2629.5,2629.3,1.66665465]
[1729233980071,3.80307,2629.5,2629.3,1.66665465]
[1729233980762,3.80307,2629.5,2629.4,0.03941304]
[1729233980964,4.3070727,2629.5,2629.4,0.03941304]
[1729233981504,4.3070727,2629.5,2629.2,1.66665465]
[1729233981706,4.3070727,2629.5,2629.4,0.03941304]
[1729233981907,4.3070727,2629.5,2629.2,1.66665465]
[1729233982087,4.3070727,2629.5,2629.4,0.0394437]
[1729233982266,0.5040027,2629.5,2629.3,1.70615479]
[1729233982466,0.5040027,2629.5,2629.2,1.66665465]
[1729233982467,3.80314,2629.4,2629.2,1.66665465]
[1729233983606,1.66665465,2629.3,2628.6,0.7706]
[1729233983848,3.80381,2629.0,2628.7,1.66665465]
[1729233983995,3.80381,2629.0,2628.8,1.66665465]
[1729233984372,3.80381,2629.0,2628.9,1.66665465]
[1729233984575,4.61229,2629.2,2628.9,1.66665465]
[1729233984807,4.264839,2629.1,2628.9,1.66665465]
[1729233985503,0.461229,2629.1,2628.9,1.66665465]
[1729233985667,4.61229,2629.2,2629.0,1.66665465]
[1729233985872,3.80349,2629.2,2629.0,1.66665465]
[1729233986075,4.57571,2629.4,2628.7,7.6083]
[1729233986076,4.57571,2629.4,2629.1,1.66665465]
[1729233986322,4.57571,2629.4,2629.0,1.66665465]
[1729233986511,3.80336,2629.3,2629.0,1.66665465]
[1729233987307,3.80329,2629.3,2629.0,1.66665465]
[1729233988382,3.80329,2629.3,2629.1,1.66665465]
[1729233988577,3.80329,2629.3,2629.0,1.66665465]
[1729233989999,3.80358,2629.1,2629.0,1.66665465]
[1729233990306,3.80358,2629.1,2628.9,1.66665465]
[1729233993001,4.63413,2629.0,2628.8,1.66665465]
[1729233993297,4.63413,2629.0,2628.9,1.66665465]
[1729233993504,4.63413,2629.0,2628.8,1.66665465]
[1729233993691,0.8303,2629.0,2628.8,1.66665465]
[1729233994020,4.63403,2629.0,2628.8,1.66665465]
[1729233994509,3.80363,2629.1,2628.9,1.66665465]
[1729233994672,3.80363,2629.1,2629.0,1.66665465]
[1729233995281,3.80363,2629.1,2628.9,1.66665465]
[1729233995737,3.80363,2629.1,2629.0,1.66665465]
[1729233996022,3.80345,2629.2,2629.0,1.70538539]
[1729233998034,7.60697,2629.2,2629.0,1.70538539]
[1729233998393,3.80345,2629.2,2629.0,1.70538539]
[1729233998701,3.80333,2629.3,2629.1,1.66665465]
[1729233999039,3.80321,2629.4,2629.2,1.66665465]
[1729233999219,3.80321,2629.4,2629.2,0.03859099]
[1729233999403,3.80329,2629.3,2629.2,0.03859099]
[1729233999915,3.80329,2629.3,2629.2,0.03858716]
[1729234000132,3.80329,2629.3,2629.0,2.48315465]
[1729234000290,3.80401,2628.8,2628.5,0.8165]
[1729234000486,3.80398,2628.9,2628.6,1.66665465]
[1729234001029,3.80398,2628.9,2628.7,1.66665465]
[1729234001200,3.80401,2628.9,2628.7,1.66665465]
[1729234001906,3.80401,2628.8,2628.7,1.66665465]
[1729234002295,3.80401,2628.9,2628.7,1.66665465]
[1729234003233,3.80401,2628.8,2628.6,1.66665465]
[1729234003403,3.80401,2628.8,2628.7,1.66665465]
[1729234007729,3.80401,2628.8,2628.6,1.66665465]
[1729234008393,3.80401,2628.8,2628.7,1.66665465]
[1729234008595,3.80401,2628.8,2628.6,1.66665465]
[1729234009333,3.8043,2628.6,2628.3,0.8032]
[1729234009508,3.8043,2628.6,2628.3,2.46985465]
[1729234009833,3.8043,2628.6,2628.4,1.66665465]
[1729234010265,3.80454,2628.5,2628.2,1.66665465]
[1729234010466,3.80454,2628.5,2628.1,0.8122]
[1729234010467,3.80454,2628.5,2628.3,1.66665465]
[1729234010764,0.7829,2628.7,2628.3,1.66665465]
[1729234010926,5.25058656,2628.7,2628.4,0.0391271]
[1729234011119,3.80434,2628.6,2628.4,0.0391271]
[1729234011749,3.80445,2628.5,2628.4,0.0391271]
[1729234011952,3.80445,2628.5,2628.2,1.66665465]
[1729234012163,3.80467,2628.4,2628.3,1.66665465]
[1729234012479,0.7557,2628.4,2628.3,1.66665465]
[1729234012644,0.7557,2628.6,2628.3,1.66665465]
[1729234012827,0.7557,2628.6,2628.4,1.66665465]
[1729234012828,4.56,2628.6,2628.4,1.66665465]
[1729234013165,4.56,2628.6,2628.0,3.80507]
[1729234013541,4.56,2628.6,2628.3,1.66665465]
[1729234013886,3.80445,2628.5,2628.3,1.66665465]
[1729234014060,3.80445,2628.5,2628.2,1.66665465]
[1729234014267,3.80445,2628.5,2628.3,1.66665465]
[1729234014471,4.60135,2628.8,2628.4,1.66665465]
[1729234014671,4.644699,2628.7,2628.4,1.66665465]
[1729234015470,4.644699,2628.7,2627.9,3.8052]
[1729234015471,3.80455,2628.5,2627.9,3.8052]
[1729234015638,0.8149,2628.6,2628.0,3.80515]
[1729234015838,4.6192,2628.6,2628.3,1.66665465]
[1729234016234,3.80449,2628.5,2628.3,1.66665465]
[1729234017674,3.80459,2628.4,2628.2,1.66665465]
[1729234017873,3.80459,2628.4,2628.3,1.66665465]
[1729234018667,3.80441,2628.6,2628.3,1.66665465]
[1729234018868,3.80441,2628.6,2628.4,1.66665465]
[1729234019458,3.80441,2628.6,2628.3,1.66665465]
[1729234019756,3.80441,2628.6,2628.4,1.66665465]
[1729234020337,3.80422,2628.7,2628.5,1.66665465]
[1729234020531,3.80422,2628.7,2628.4,1.66665465]
[1729234021044,0.7525,2628.8,2628.5,1.66665465]
[1729234021439,0.8098,2629.0,2628.5,2.46725465]
[1729234021594,3.80417,2628.7,2628.2,4.60547]
[1729234022095,3.80417,2628.7,2628.5,1.66665465]
[1729234022246,3.80417,2628.7,2628.6,1.66665465]
[1729234022447,3.80417,2628.7,2628.5,1.66665465]
[1729234022975,3.80387,2628.9,2628.6,1.66665465]
[1729234023177,3.80387,2628.9,2628.4,3.80457]
[1729234023373,3.80387,2628.9,2628.6,1.66665465]
[1729234023374,7.60788,2628.9,2628.6,1.66665465]
[1729234023559,7.60783,2628.9,2628.6,1.66665465]
[1729234023890,3.80403,2628.8,2628.6,1.66665465]
[1729234024984,3.80403,2628.8,2628.5,1.66665465]
[1729234025987,3.80403,2628.8,2628.6,0.03933633]
[1729234026284,3.80416,2628.7,2628.6,0.03933633]
[1729234026586,3.80403,2628.8,2628.6,1.70599098]
[1729234026986,3.80403,2628.8,2628.6,0.03933633]
[1729234027483,3.80403,2628.8,2628.6,1.70599098]
[1729234027646,8.41746,2629.0,2628.6,1.70599098]
[1729234027851,3.80391,2628.9,2628.7,1.66665465]
[1729234028062,3.80391,2628.9,2628.6,2.49129098]
[1729234028390,3.80391,2628.9,2628.7,0.0391993]
[1729234028588,7.6079,2628.9,2628.7,0.0391993]
[1729234028765,3.80391,2628.9,2628.7,0.0391993]
[1729234029489,3.80401,2628.8,2628.7,0.0391993]
[1729234029852,3.80391,2628.9,2628.5,1.66665465]
[1729234030080,3.80401,2628.8,2628.7,0.03918779]
[1729234030281,3.80401,2628.8,2628.6,0.03924426]
[1729234030593,7.60787,2628.9,2628.7,0.03918779]
[1729234030752,7.60787,2628.9,2628.5,1.66665465]
[1729234030948,3.80391,2628.9,2628.8,0.03913132]
[1729234031191,3.80402,2628.8,2628.5,1.66665465]
[1729234031697,3.80402,2628.8,2628.6,1.66665465]
[1729234032057,3.80402,2628.8,2628.4,0.7607]
[1729234032058,3.80402,2628.8,2628.5,1.66665465]
[1729234033011,3.80431,2628.6,2628.0,3.80509]
[1729234033182,7.60868,2628.6,2628.3,1.66665465]
[1729234033501,3.80452,2628.5,2628.3,1.66665465]
[1729234033699,3.8043,2628.6,2628.3,1.66665465]
[1729234033899,3.80459,2628.4,2628.3,1.66665465]
[1729234034512,7.6093,2628.4,2628.2,1.66665465]
[1729234034709,3.80459,2628.4,2628.2,1.66665465]
[1729234036268,3.80459,2628.4,2628.0,3.80516]
[1729234036269,0.7632,2628.3,2627.7,0.816]
[1729234036488,0.7632,2628.3,2627.8,1.66665465]
[1729234036489,3.80513,2628.1,2627.8,1.66665465]
[1729234036699,3.80513,2628.1,2627.7,0.816]
[1729234036908,3.80513,2628.1,2627.9,0.03708877]
[1729234037070,3.80513,2628.1,2627.8,0.03714528]
[1729234037269,3.80488,2628.2,2627.7,4.62159]
[1729234037518,3.80488,2628.2,2628.1,1.66665465]
[1729234037865,0.7632,2628.3,2628.1,1.70363043]
[1729234038114,4.56797,2628.3,2628.1,1.70363043]
[1729234038607,3.80459,2628.4,2628.2,1.66665465]
[1729234038980,3.80459,2628.4,2628.3,0.0368628]
[1729234040710,4.57379,2628.6,2628.3,0.0368628]
[1729234040911,4.57379,2628.6,2628.4,1.66665465]
[1729234040912,8.835549,2628.6,2628.4,1.66665465]
[1729234041078,8.835599,2628.6,2628.4,1.70346097]
[1729234041271,4.5928,2628.8,2628.4,0.03680632]
[1729234041599,3.80445,2628.5,2628.4,0.03680632]
[1729234041785,7.60886,2628.6,2628.4,0.03680632]
[1729234041971,3.80443,2628.6,2628.4,0.03680632]
[1729234042291,0.7887,2628.8,2628.0,0.8104]
[1729234042292,0.7528,2628.3,2628.0,0.8104]
[1729234042493,0.7528,2628.3,2628.1,1.66665465]
[1729234042494,4.55764,2628.3,2628.1,1.66665465]
[1729234043074,4.55764,2628.3,2628.2,1.66665465]
[1729234043623,3.80484,2628.3,2628.2,1.66665465]
[1729234044375,3.80484,2628.3,2628.1,1.66665465]
[1729234045114,3.80484,2628.3,2628.2,1.66665465]
[1729234045412,3.80484,2628.3,2628.1,1.66665465]
[1729234045614,4.57835,2628.5,2628.2,1.66665465]
[1729234045778,1.612076,2628.5,2628.2,1.66665465]
[1729234045984,3.80472,2628.4,2628.0,1.66665465]
[1729234046291,7.60939,2628.4,2628.1,1.66665465]
[1729234047289,0.7738,2628.5,2628.1,1.66665465]
[1729234047290,3.80446,2628.5,2628.3,1.66665465]
[1729234047892,3.80446,2628.5,2628.2,1.66665465]
[1729234048222,3.80446,2628.5,2628.3,0.0370393]
[1729234049713,3.80459,2628.4,2628.3,0.0370393]
[1729234049918,3.80446,2628.5,2628.3,0.0370393]
[1729234050122,3.80446,2628.5,2628.2,1.66665465]
[1729234050123,7.609,2628.5,2628.2,1.66665465]
[1729234050484,7.609,2628.5,2628.3,0.0370393]
[1729234050995,3.80446,2628.5,2628.3,0.0370393]
[1729234051200,7.609,2628.5,2628.3,0.0370393]
[1729234051530,3.80446,2628.5,2628.3,1.70369395]
[1729234051708,3.80446,2628.5,2628.3,0.0370393]
[1729234052191,7.60904,2628.5,2628.3,0.0370393]
[1729234053622,3.80446,2628.5,2628.3,0.0370393]
[1729234054834,7.60902,2628.5,2628.3,0.0370393]
[1729234054999,3.80446,2628.5,2628.3,0.0370393]
[1729234056022,7.60899,2628.5,2628.3,0.0370393]
[1729234056597,3.80446,2628.5,2628.3,0.0370393]
[1729234056929,3.80446,2628.5,2628.3,1.70369395]
[1729234057234,0.7992,2628.7,2628.4,1.66665465]
[1729234057387,3.80417,2628.7,2628.4,1.66665465]
[1729234057587,3.80408,2628.8,2628.4,1.66665465]
[1729234057588,7.60821,2628.8,2628.4,1.66665465]
[1729234057783,7.60821,2628.8,2628.5,0.03694936]
[1729234057784,3.80408,2628.8,2628.5,0.03694936]
[1729234058190,3.80416,2628.7,2628.5,0.03694936]
[1729234058390,3.80416,2628.7,2628.3,1.66665465]
[1729234058613,3.80416,2628.7,2628.6,0.03689289]
[1729234058829,3.80416,2628.7,2628.4,1.66665465]
[1729234059070,3.80416,2628.7,2628.6,0.03689289]
[1729234059202,3.80416,2628.7,2628.5,0.03694936]
[1729234059389,3.80402,2628.8,2628.4,1.66665465]
[1729234059585,3.80402,2628.8,2628.6,0.03689289]
[1729234059826,7.60814,2628.8,2628.4,1.66665465]
[1729234059992,3.80402,2628.8,2628.7,0.03683642]
[1729234060188,0.7633,2628.9,2628.7,1.66665465]
[1729234060415,2.389286,2629.2,2628.7,1.66665465]
[1729234060416,0.8147,2629.2,2628.8,1.66665465]
[1729234060597,6.60905166,2629.4,2629.0,1.66665465]
[1729234060783,6.60905166,2629.4,2629.1,1.66665465]
[1729234060784,4.61797,2629.4,2629.1,1.66665465]
[1729234060981,5.65911917,2629.4,2629.1,0.03647631]
[1729234061197,5.65911917,2629.4,2629.0,1.66665465]
[1729234061437,3.80329,2629.3,2629.2,0.03641986]
[1729234061610,3.80341,2629.3,2629.1,0.03647631]
[1729234061822,3.80341,2629.3,2628.9,1.66665465]
[1729234061823,3.80341,2629.3,2629.2,0.03641986]
[1729234062142,4.74966292,2629.3,2628.9,1.66665465]
[1729234062306,4.74966292,2629.3,2629.2,0.03635465]
[1729234062502,4.74966292,2629.3,2628.9,1.66665465]
[1729234062840,5.79383166,2629.7,2629.2,1.66665465]
[1729234062841,3.80302,2629.5,2629.2,1.66665465]
[1729234063028,3.80302,2629.5,2629.3,1.66665465]
[1729234063223,3.80326,2629.4,2629.3,0.03625602]
[1729234063392,3.80326,2629.4,2629.1,2.43615465]
[1729234063593,3.80326,2629.4,2629.3,0.03625602]
[1729234063810,3.80301,2629.5,2629.2,0.03631246]
[1729234064013,3.80301,2629.5,2629.2,1.66665465]
[1729234064342,3.80301,2629.5,2629.3,0.03621383]
[1729234064495,4.266501,2629.5,2629.3,0.03621383]
[1729234064690,3.80314,2629.4,2629.1,1.66665465]
[1729234064998,3.80314,2629.4,2629.2,0.03625494]
[1729234065498,3.80286,2629.6,2629.3,1.66665465]
[1729234065695,7.63474,2629.7,2629.4,0.03749795]
[1729234065895,3.80304,2629.5,2629.2,2.48085465]
[1729234066101,3.80304,2629.5,2629.3,0.03755842]
[1729234066997,11.43759,2629.7,2629.3,1.70421307]
[1729234067194,3.80288,2629.6,2629.3,1.70421307]
[1729234067355,3.80288,2629.6,2629.3,1.66665465]
[1729234067556,3.80288,2629.6,2629.4,0.03749795]
[1729234067953,3.80288,2629.6,2629.4,1.7041526]
[1729234068462,3.80261,2629.8,2629.5,1.66665465]
[1729234068792,3.80261,2629.8,2629.6,0.04025217]
[1729234069153,3.80261,2629.8,2629.4,1.66665465]
[1729234069355,3.80261,2629.8,2629.7,0.04018707]
[1729234069589,4.638204,2629.8,2629.7,0.04018707]
[1729234069892,3.80278,2629.7,2629.4,1.66665465]
[1729234070756,1.66665465,2629.8,2629.5,0.0431497]
[1729234071095,3.8031,2629.5,2629.2,1.66665465]
[1729234071387,3.8031,2629.5,2629.3,0.04327642]
[1729234071768,3.80314,2629.4,2629.3,0.04327642]
[1729234072196,3.80314,2629.4,2629.1,1.66665465]
[1729234072197,3.80341,2629.3,2629.1,1.66665465]
[1729234072394,3.80314,2629.4,2629.3,0.04327642]
[1729234072551,3.80332,2629.3,2629.1,1.66665465]
[1729234074987,3.80332,2629.3,2628.8,0.77]
[1729234075180,3.80358,2629.1,2628.8,1.66665465]
[1729234075389,3.80397,2628.9,2628.6,2.43665465]
[1729234075693,4.61474,2628.8,2628.6,1.66665465]
[1729234076009,0.8107,2628.8,2628.2,0.7919]
[1729234076161,3.80445,2628.5,2628.3,1.66665465]
[1729234076360,3.80445,2628.5,2628.4,1.66665465]
[1729234076570,3.80445,2628.5,2628.4,1.65337377]
[1729234077798,3.80432,2628.6,2628.4,1.65337377]
[1729234078012,4.265822,2628.6,2628.5,1.66665465]
[1729234078304,4.265822,2628.6,2628.4,1.66665465]
[1729234078682,4.265822,2628.6,2628.5,1.66665465]
[1729234078890,4.265822,2628.6,2628.4,1.66665465]
[1729234079402,3.80445,2628.5,2628.4,1.66665465]
[1729234080198,0.461502,2628.6,2628.4,1.66665465]
[1729234080406,4.265802,2628.6,2628.5,1.66665465]
[1729234080579,4.265802,2628.6,2628.4,1.66665465]
[1729234080970,4.265802,2628.6,2628.5,1.66665465]
[1729234082103,0.461502,2628.6,2628.5,1.66665465]
[1729234082296,3.80387,2628.9,2628.5,1.66665465]
[1729234082500,3.80387,2628.9,2628.7,1.66665465]
[1729234083211,4.6352,2629.0,2628.7,1.66665465]
[1729234083392,4.6352,2629.0,2628.2,4.5967]
[1729234083393,0.8156,2628.8,2628.2,0.7919]
[1729234083600,0.8156,2628.8,2628.0,3.80508]
[1729234083601,3.80445,2628.5,2628.3,1.66665465]
[1729234083905,3.80459,2628.4,2628.3,1.66665465]
[1729234084115,4.57019,2628.4,2627.7,3.80553]
[1729234084323,3.80502,2628.2,2627.6,4.56487]
[1729234084467,0.7656,2628.4,2627.6,0.7592]
[1729234084468,3.8051,2628.1,2627.6,0.7592]
[1729234084674,4.18561,2628.1,2627.6,4.56492]
[1729234084888,4.18561,2628.1,2627.6,8.37064]
[1729234085117,0.7656,2628.4,2627.6,8.37064]
[1729234085118,0.7656,2628.4,2627.7,3.80553]
[1729234085434,3.8044,2628.6,2627.8,4.56458]
[1729234085609,3.8044,2628.6,2628.2,1.66665465]
[1729234086008,3.80462,2628.4,2628.2,1.66665465]
[1729234086208,3.80462,2628.4,2627.9,3.80531]
[1729234086396,3.80462,2628.4,2628.2,1.66665465]
[1729234086602,0.7656,2628.7,2628.3,2.49655465]
[1729234086803,7.60823,2628.8,2628.5,1.66665465]
[1729234086804,3.80409,2628.8,2628.5,1.66665465]
[1729234087121,3.80409,2628.8,2628.3,0.8299]
[1729234087122,4.563509,2628.7,2628.4,1.66665465]
[1729234087519,3.80444,2628.6,2628.2,1.66665465]
[1729234087827,3.80444,2628.6,2628.1,0.7746]
[1729234087828,3.80444,2628.6,2628.3,1.66665465]
[1729234088134,5.351469,2628.7,2628.4,1.66665465]
[1729234088438,3.80406,2628.8,2628.6,1.66665465]
[1729234088621,3.80406,2628.8,2628.3,3.80472]
[1729234088825,3.80397,2628.9,2628.3,3.80472]
[1729234089165,3.80404,2628.8,2628.6,1.66665465]
[1729234089321,3.80392,2628.9,2628.5,1.66665465]
[1729234089523,3.80413,2628.8,2628.5,1.66665465]
[1729234089733,3.80413,2628.8,2628.6,1.66665465]
[1729234090333,3.80413,2628.8,2628.7,1.66665465]
[1729234090546,3.80413,2628.8,2628.6,1.66665465]
[1729234090726,3.80392,2628.9,2628.7,1.66665465]
[1729234091040,3.80376,2629.0,2628.7,1.66665465]
[1729234091339,3.8038,2629.0,2628.7,1.66665465]
[1729234091833,3.80391,2628.9,2628.7,1.66665465]
[1729234092214,3.80391,2628.9,2628.6,2.47945465]
[1729234096426,3.80374,2629.0,2628.7,1.66665465]
[1729234096920,3.80374,2629.0,2628.6,0.8128]
[1729234097251,3.80403,2628.8,2628.2,3.80474]
[1729234097411,3.80403,2628.8,2628.5,1.66665465]
[1729234097617,3.80403,2628.8,2628.6,1.66665465]
[1729234097924,3.80332,2629.3,2628.7,5.47080465]
[1729234097925,3.80354,2629.2,2628.7,5.47080465]
[1729234098138,3.80354,2629.2,2629.0,1.66665465]
[1729234098349,3.80324,2629.4,2629.0,1.66665465]
[1729234098652,3.80339,2629.3,2629.0,1.66665465]
[1729234099013,3.80339,2629.3,2628.9,1.66665465]
[1729234099322,3.80339,2629.3,2629.0,1.66665465]
[1729234099541,2.42495465,2629.2,2628.5,0.7562]
[1729234099838,3.80394,2628.9,2628.6,1.66665465]
[1729234100212,3.80394,2628.9,2628.7,1.66665465]
[1729234101042,3.80394,2628.9,2628.6,1.66665465]
[1729234104366,3.80394,2628.9,2628.7,1.66665465]
[1729234105055,0.7583,2629.2,2628.8,1.66665465]
[1729234105357,3.80368,2629.1,2628.8,0.7873]
[1729234106063,7.60734,2629.1,2628.7,1.66665465]
[1729234106221,3.80366,2629.1,2628.8,1.66665465]
[1729234106553,3.80373,2629.0,2628.7,1.66665465]
[1729234107227,7.60754,2629.0,2628.6,2.45805465]
[1729234107429,3.80373,2629.0,2628.7,1.66665465]
[1729234110772,3.80373,2629.0,2628.5,1.66665465]
[1729234110773,3.80395,2628.9,2628.5,1.66665465]
[1729234111127,3.80395,2628.9,2628.6,1.66665465]
[1729234112369,3.80395,2628.9,2628.7,1.66665465]
[1729234112665,4.35581785,2629.2,2628.8,2.45735465]